fUST/lending_fUST_20250220
["ID","MTS","AMOUNT","RATE_DAILY","PERIOD"]
[353802567,1740055843739,-2008.16,0.00013698,2]
[353802569,1740055843749,-2170.74,0.00013698,2]
[353802571,1740055843758,-1093.23,0.00013698,2]
[353802573,1740055843768,-1235.94,0.00013698,2]
[353802575,1740055843777,-500.0,0.00013698,2]
[353802577,1740055843787,-570.23,0.00013698,2]
[353802579,1740055843796,-500.0,0.00013698,2]
[353802581,1740055843806,-620.89,0.00013698,2]
[353802583,1740055843820,-860.03,0.00013698,2]
[353802585,1740055843830,-500.0,0.00013698,2]
[353802587,1740055843839,-500.0,0.00013698,2]
[353802589,1740055843849,-500.0,0.00013698,2]
[353802591,1740055843860,-500.0,0.00013698,2]
[353802593,1740055843869,-500.0,0.00013698,2]
[353802596,1740055843879,-500.0,0.00013698,2]
[353802598,1740055843890,-500.0,0.00013698,2]
[353802600,1740055843899,-500.0,0.00013698,2]
[353802602,1740055843909,-519.25639757,0.00013698,2]
[353802604,1740055843918,-500.0,0.00013698,2]
[353802606,1740055843928,-500.0,0.00013698,2]
[353802608,1740055843937,-500.0,0.00013698,2]
[353802610,1740055843947,-26033.28,0.00013698,2]
[353802611,1740055843956,-500.0,0.00013698,2]
[353802613,1740055843965,-1161.06,0.00013698,2]
[353802616,1740055843976,-759.02,0.00013698,2]
[353802618,1740055843986,-500.0,0.00013698,2]
[353802619,1740055843994,-1182.84,0.00013698,2]
[353802621,1740055844004,-674.64,0.00013698,2]
[353802624,1740055844014,-500.0,0.00013698,2]
[353802626,1740055844023,-1864.03,0.00013698,2]
[353802628,1740055844033,-621.3,0.00013698,2]
[353802630,1740055844043,-500.0,0.00013698,2]
[353802632,1740055844052,-843.74,0.00013698,2]
[353802634,1740055844062,-3475.81,0.00013698,2]
[353802636,1740055844071,-500.0,0.00013698,2]
[353802638,1740055844080,-811.98,0.00013698,2]
[353802640,1740055844089,-2187.13,0.00013698,2]
[353802642,1740055844098,-9361.66,0.00013698,2]
[353802644,1740055844109,-500.0,0.00013698,2]
[353802646,1740055844117,-2294.35,0.00013698,2]
[353802648,1740055844126,-500.0,0.00013698,2]
[353802650,1740055844136,-500.0,0.00013698,2]
[353802652,1740055844145,-500.0,0.00013698,2]
[353802654,1740055844156,-534.7,0.00013698,2]
[353802656,1740055844168,-1598.31,0.00013698,2]
[353802658,1740055844180,-500.0,0.00013698,2]
[353802660,1740055844194,-1230.14,0.00013698,2]
[353802662,1740055844204,-500.0,0.00013698,2]
[353802664,1740055844213,-1458.41,0.00013698,2]
[353802666,1740055844223,-328.1730189,0.00013698,2]
[353802668,1740055844232,-500.0,0.00013698,2]
[353802669,1740055844241,-937.65,0.00013698,2]
[353802671,1740055844250,-500.0,0.00013698,2]
[353802673,1740055844260,-500.0,0.00013698,2]
[353802676,1740055844269,-500.0,0.00013698,2]
[353802678,1740055844279,-500.0,0.00013698,2]
[353802680,1740055844288,-1000.83,0.00013698,2]
[353802682,1740055844296,-500.0,0.00013698,2]
[353802683,1740055844306,-500.0,0.00013698,2]
[353802697,1740055844316,-828.58,0.00013698,2]
[353802700,1740055844440,-500.0,0.00013698,2]
[353802702,1740055844450,-500.0,0.00013698,2]
[353802704,1740055844459,-500.0,0.00013698,2]
[353802706,1740055844469,-500.0,0.00013698,2]
[353802708,1740055844478,-3846.2,0.00013698,2]
[353802710,1740055844487,-500.0,0.00013698,2]
[353802712,1740055844496,-500.0,0.00013698,2]
[353802714,1740055844505,-500.0,0.00013698,2]
[353802716,1740055844515,-500.0,0.00013698,2]
[353802718,1740055844524,-500.0,0.00013698,2]
[353802720,1740055844533,-500.0,0.00013698,2]
[353802722,1740055844542,-500.0,0.00013698,2]
[353802724,1740055844552,-806.37,0.00013698,2]
[353802726,1740055844562,-180.38668,0.00013699,2]
[353802728,1740055844571,-7438.69753278,0.00013708,2]
[353802730,1740055844580,-158.2991519,0.00013714,5]
[353802732,1740055844590,-181.28445634,0.00013763,2]
[353802734,1740055844599,-500.0,0.0001378,2]
[353802736,1740055844609,-500.0,0.0001378,2]
[353802738,1740055844619,-500.0,0.0001378,2]
[353802740,1740055844627,-199.75,0.0001378,2]
[353802742,1740055844637,-500.0,0.0001378,2]
[353802744,1740055844646,-500.0,0.0001378,2]
[353802746,1740055844656,-489.883,0.0001378,2]
[353802748,1740055844666,-500.0,0.0001378,2]
[353802750,1740055844675,-500.0,0.0001378,2]
[353802752,1740055844685,-500.0,0.0001378,2]
[353802754,1740055844694,-500.0,0.0001378,2]
[353802756,1740055844704,-500.0,0.0001378,2]
[353802758,1740055844713,-500.0,0.0001378,2]
[353802760,1740055844723,-500.0,0.0001378,2]
[353802762,1740055844733,-500.0,0.0001378,2]
[353802764,1740055844742,-500.0,0.0001378,2]
[353802766,1740055844751,-624.42,0.0001378,2]
[353802768,1740055844761,-500.0,0.0001378,2]
[353802770,1740055844770,-500.0,0.0001378,2]
[353802772,1740055844779,-759.51,0.0001378,2]
[353802774,1740055844788,-500.0,0.0001378,2]
[353802776,1740055844797,-500.0,0.0001378,2]
[353802778,1740055844806,-224.00898383,0.0001378,2]
[353802780,1740055844819,-645.08,0.0001378,2]
[353802782,1740055844829,-500.0,0.0001378,2]
[353802784,1740055844838,-500.0,0.0001378,2]
[353802786,1740055844847,-500.0,0.0001378,2]
[353802788,1740055844857,-500.0,0.0001378,2]
[353802790,1740055844866,-500.0,0.0001378,2]
[353802792,1740055844875,-181.16552568,0.0001378,2]
[353802794,1740055844884,-500.0,0.0001378,2]
[353802796,1740055844893,-500.0,0.0001378,2]
[353802798,1740055844903,-500.0,0.0001378,2]
[353802800,1740055844912,-500.0,0.0001378,2]
[353802802,1740055844922,-500.0,0.0001378,2]
[353802804,1740055844931,-500.0,0.0001378,2]
[353802806,1740055844941,-500.0,0.0001378,2]
[353802808,1740055844951,-5289.53,0.0001378,2]
[353802810,1740055844960,-500.0,0.0001378,2]
[353802812,1740055844970,-750.72,0.0001378,2]
[353802814,1740055844979,-5712.91973674,0.0001378,2]
[353802888,1740056158208,266.966582,9.041e-05,2]
[353802896,1740056814100,-496.50564045,0.0001368,2]
[353802936,1740057032643,-300.0,0.0001358,2]
[353802938,1740057032652,-13275.78028017,0.00013581,2]
[353802940,1740057032661,-2550.83914526,0.0001368,2]
[353802942,1740057032671,-151.0,0.0001369,2]
[353802944,1740057032680,-500.0,0.00013697,2]
[353802946,1740057032689,-500.0,0.00013697,2]
[353802948,1740057032698,-500.0,0.00013697,2]
[353802950,1740057032708,-500.0,0.00013697,2]
[353802952,1740057032718,-500.0,0.00013697,2]
[353802954,1740057032727,-500.0,0.00013697,2]
[353802956,1740057032736,-560.42834933,0.00013697,2]
[353802958,1740057032746,-273.85611135,0.00013697,2]
[353802960,1740057032757,-256.43,0.00013697,2]
[353802962,1740057032766,-500.0,0.00013697,2]
[353802964,1740057032780,-500.0,0.00013697,2]
[353802966,1740057032790,-500.0,0.00013697,2]
[353802968,1740057032799,-500.0,0.00013697,2]
[353802970,1740057032808,-500.0,0.00013697,2]
[353802973,1740057032817,-650.0,0.00013697,2]
[353802975,1740057032826,-500.0,0.00013697,2]
[353802977,1740057032836,-156.04283493,0.00013697,2]
[353802979,1740057032845,-500.0,0.00013697,2]
[353802981,1740057032855,-500.0,0.00013697,2]
[353802983,1740057032865,-500.0,0.00013697,2]
[353802985,1740057032875,-500.0,0.00013697,2]
[353802987,1740057032884,-500.0,0.00013697,2]
[353802989,1740057032894,-500.0,0.00013697,2]
[353802991,1740057032903,-545.77882901,0.00013697,2]
[353802993,1740057032913,-500.0,0.00013697,2]
[353802995,1740057032923,-500.0,0.00013697,2]
[353802997,1740057032933,-500.0,0.00013697,2]
[353802999,1740057032943,-500.0,0.00013697,2]
[353803001,1740057032952,-500.0,0.00013697,2]
[353803003,1740057032961,-15315.01017798,0.00013698,5]
[353803004,1740057032970,-5207.0928396,0.00013698,5]
[353803005,1740057032980,-500.0,0.00013698,2]
[353803006,1740057032989,-501.35392252,0.00013698,2]
[353803007,1740057032999,-500.0,0.00013698,2]
[353803008,1740057033008,-500.0,0.00013698,2]
[353803009,1740057033017,-500.0,0.00013698,2]
[353803010,1740057033027,-299.50147806,0.00013698,2]
[353803011,1740057033037,-500.0,0.00013698,2]
[353803012,1740057033047,-500.0,0.00013698,2]
[353803013,1740057033056,-500.0,0.00013698,2]
[353803014,1740057033066,-500.0,0.00013698,2]
[353803015,1740057033076,-500.0,0.00013698,2]
[353803016,1740057033086,-500.0,0.00013698,2]
[353803017,1740057033096,-500.0,0.00013698,2]
[353803018,1740057033106,-500.0,0.00013698,2]
[353803019,1740057033116,-500.0,0.00013698,2]
[353803020,1740057033126,-500.0,0.00013698,2]
[353803021,1740057033136,-400.22611081,0.00013698,2]
[353803022,1740057033146,-500.0,0.00013698,2]
[353803024,1740057033155,-500.0,0.00013698,2]
[353803026,1740057033165,-500.0,0.00013698,2]
[353803028,1740057033175,-599.19,0.00013698,2]
[353803030,1740057033184,-500.0,0.00013698,2]
[353803032,1740057033193,-500.0,0.00013698,2]
[353803034,1740057033204,-500.0,0.00013698,2]
[353803036,1740057033215,-500.0,0.00013698,2]
[353803038,1740057033224,-500.0,0.00013698,2]
[353803040,1740057033233,-173.7271051,0.00013698,2]
[353803042,1740057033243,-500.0,0.00013698,2]
[353803044,1740057033253,-500.0,0.00013698,2]
[353803046,1740057033262,-555.0770785,0.00013698,2]
[353803048,1740057033271,-501.59463154,0.00013698,2]
[353803049,1740057033281,-500.0,0.00013698,2]
[353803051,1740057033290,-500.0,0.00013698,2]
[353803053,1740057033300,-500.0,0.00013698,2]
[353803055,1740057033310,-500.0,0.00013698,2]
[353803057,1740057033321,-500.0,0.00013698,2]
[353803059,1740057033330,-500.0,0.00013698,2]
[353803060,1740057033340,-503.62472052,0.00013698,2]
[353803061,1740057033349,-500.0,0.00013698,2]
[353803062,1740057033359,-367.91592911,0.00013698,2]
[353803063,1740057033368,-500.0,0.00013698,2]
[353803064,1740057033378,-500.0,0.00013698,2]
[353803065,1740057033388,-500.0,0.00013698,2]
[353803066,1740057033397,-500.0,0.00013698,2]
[353803067,1740057033407,-500.0,0.00013698,2]
[353803068,1740057033416,-503.4,0.00013698,2]
[353803069,1740057033425,-580.62691748,0.00013698,2]
[353803070,1740057033434,-500.0,0.00013698,2]
[353803071,1740057033443,-500.0,0.00013698,2]
[353803072,1740057033452,-500.0,0.00013698,2]
[353803073,1740057033461,-500.0,0.00013698,2]
[353803074,1740057033471,-500.0,0.00013698,2]
[353803075,1740057033480,-500.0,0.00013698,2]
[353803076,1740057033490,-500.0,0.00013698,2]
[353803077,1740057033500,-500.0,0.00013698,2]
[353803078,1740057033509,-500.0,0.00013698,2]
[353803079,1740057033519,-500.0,0.00013698,2]
[353803080,1740057033528,-500.0,0.00013698,2]
[353803081,1740057033540,-500.0,0.00013698,2]
[353803082,1740057033555,-677.94,0.00013698,2]
[353803083,1740057033568,-500.0,0.00013698,2]
[353803084,1740057033580,-819.7,0.00013698,2]
[353803085,1740057033593,-500.0,0.00013698,2]
[353803086,1740057033606,-500.0,0.00013698,2]
[353803087,1740057033617,-500.0,0.00013698,2]
[353803088,1740057033627,-500.0,0.00013698,2]
[353803089,1740057033639,-382.7660543,0.00013698,2]
[353803090,1740057033652,-500.0,0.00013698,2]
[353803091,1740057033663,-500.0,0.00013698,2]
[353803092,1740057033675,-500.0,0.00013698,2]
[353803093,1740057033687,-500.0,0.00013698,2]
[353803094,1740057033699,-500.0,0.00013698,2]
[353803095,1740057033713,-500.0,0.00013698,2]
[353803096,1740057033724,-500.0,0.00013698,2]
[353803097,1740057033736,-500.0,0.00013698,2]
[353803098,1740057033750,-445.0,0.00013698,2]
[353803099,1740057033764,-500.0,0.00013698,2]
[353803100,1740057033777,-500.0,0.00013698,2]
[353803101,1740057033789,-680.9,0.00013698,2]
[353803102,1740057033801,-500.0,0.00013698,2]
[353803103,1740057033813,-500.0,0.00013698,2]
[353803104,1740057033826,-500.0,0.00013698,2]
[353803105,1740057033838,-500.0,0.00013698,2]
[353803106,1740057033851,-500.0,0.00013698,2]
[353803107,1740057033864,-500.0,0.00013698,2]
[353803108,1740057033876,-500.0,0.00013698,2]
[353803109,1740057033888,-500.0,0.00013698,2]
[353803110,1740057033900,-645.13118591,0.00013698,2]
[353803111,1740057033911,-500.0,0.00013698,2]
[353803112,1740057033921,-500.0,0.00013698,2]
[353803113,1740057033934,-500.0,0.00013698,2]
[353803114,1740057033945,-500.0,0.00013698,2]
[353803115,1740057033957,-500.0,0.00013698,2]
[353803116,1740057033969,-500.0,0.00013698,2]
[353803117,1740057033981,-500.0,0.00013698,2]
[353803118,1740057033992,-500.0,0.00013698,2]
[353803119,1740057034004,-500.0,0.00013698,2]
[353803120,1740057034015,-500.0,0.00013698,2]
[353803121,1740057034027,-500.0,0.00013698,2]
[353803122,1740057034039,-500.0,0.00013698,2]
[353803123,1740057034051,-500.0,0.00013698,2]
[353803124,1740057034063,-491.83280736,0.00013698,2]
[353803125,1740057034076,-500.0,0.00013698,2]
[353803126,1740057034087,-500.0,0.00013698,2]
[353803127,1740057034097,-500.0,0.00013698,2]
[353803128,1740057034108,-500.0,0.00013698,2]
[353803129,1740057034118,-500.0,0.00013698,2]
[353803130,1740057034129,-402.32676961,0.00013698,2]
[353803131,1740057034141,-500.0,0.00013698,2]
[353803132,1740057034153,-500.0,0.00013698,2]
[353803133,1740057034166,-500.0,0.00013698,2]
[353803134,1740057034179,-500.0,0.00013698,2]
[353803135,1740057034190,-500.0,0.00013698,2]
[353803136,1740057034200,-500.0,0.00013698,2]
[353803137,1740057034214,-500.0,0.00013698,2]
[353803138,1740057034226,-500.0,0.00013698,2]
[353803139,1740057034236,-500.0,0.00013698,2]
[353803140,1740057034248,-500.0,0.00013698,2]
[353803141,1740057034260,-500.0,0.00013698,2]
[353803142,1740057034271,-500.0,0.00013698,2]
[353803143,1740057034282,-500.0,0.00013698,2]
[353803144,1740057034294,-500.0,0.00013698,2]
[353803145,1740057034304,-500.0,0.00013698,2]
[353803146,1740057034315,-500.0,0.00013698,2]
[353803147,1740057034326,-500.0,0.00013698,2]
[353803148,1740057034337,-500.0,0.00013698,2]
[353803149,1740057034347,-822.61,0.00013698,2]
[353803150,1740057034358,-500.0,0.00013698,2]
[353803151,1740057034369,-500.0,0.00013698,2]
[353803152,1740057034379,-500.0,0.00013698,2]
[353803153,1740057034390,-500.0,0.00013698,2]
[353803154,1740057034402,-195.76115986,0.00013698,2]
[353803155,1740057034413,-5577.39,0.00013698,2]
[353803156,1740057034423,-500.0,0.00013698,2]
[353803157,1740057034435,-10132.91,0.00013698,2]
[353803158,1740057034445,-500.0,0.00013698,2]
[353803159,1740057034457,-500.0,0.00013698,2]
[353803160,1740057034468,-678.36,0.00013698,2]
[353803161,1740057034479,-500.0,0.00013698,2]
[353803162,1740057034491,-2373.26,0.00013698,2]
[353803163,1740057034502,-601.24,0.00013698,2]
[353803164,1740057034513,-500.0,0.00013698,2]
[353803165,1740057034524,-28597.43,0.00013698,2]
[353803166,1740057034534,-2207.68,0.00013698,2]
[353803167,1740057034545,-629.8,0.00013698,2]
[353803168,1740057034556,-500.0,0.00013698,2]
[353803169,1740057034566,-541.26,0.00013698,2]
[353803170,1740057034577,-500.0,0.00013698,2]
[353803171,1740057034587,-1364.73,0.00013698,2]
[353803172,1740057034598,-1311.07,0.00013698,2]
[353803173,1740057034609,-500.0,0.00013698,2]
[353803174,1740057034619,-500.0,0.00013698,2]
[353803175,1740057034630,-500.0,0.00013698,2]
[353803176,1740057034641,-500.0,0.00013698,2]
[353803177,1740057034653,-500.0,0.00013698,2]
[353803178,1740057034664,-646.81561276,0.00013698,2]
[353803179,1740057034675,-500.0,0.00013698,2]
[353803180,1740057034686,-939.28,0.00013698,2]
[353803181,1740057034697,-678.82,0.00013698,2]
[353803182,1740057034708,-500.0,0.00013698,2]
[353803183,1740057034719,-500.0,0.00013698,2]
[353803184,1740057034729,-500.0,0.00013698,2]
[353803185,1740057034740,-500.0,0.00013698,2]
[353803186,1740057034750,-500.0,0.00013698,2]
[353803187,1740057034760,-500.0,0.00013698,2]
[353803188,1740057034771,-500.0,0.00013698,2]
[353803189,1740057034781,-500.0,0.00013698,2]
[353803190,1740057034792,-810.73,0.00013698,2]
[353803191,1740057034802,-500.0,0.00013698,2]
[353803192,1740057034813,-500.0,0.00013698,2]
[353803193,1740057034823,-500.0,0.00013698,2]
[353803194,1740057034834,-500.0,0.00013698,2]
[353803195,1740057034844,-1266.1,0.00013698,2]
[353803196,1740057034856,-500.0,0.00013698,2]
[353803197,1740057034867,-500.0,0.00013698,2]
[353803198,1740057034877,-729.86,0.00013698,2]
[353803199,1740057034888,-500.0,0.00013698,2]
[353803200,1740057034899,-500.0,0.00013698,2]
[353803201,1740057034910,-500.0,0.00013698,2]
[353803202,1740057034922,-500.0,0.00013698,2]
[353803203,1740057034933,-500.0,0.00013698,2]
[353803204,1740057034943,-500.0,0.00013698,2]
[353803205,1740057034954,-500.0,0.00013698,2]
[353803206,1740057034966,-1999.67,0.00013698,2]
[353803207,1740057034977,-500.0,0.00013698,2]
[353803208,1740057034987,-500.0,0.00013698,2]
[353803209,1740057034998,-500.0,0.00013698,2]
[353803210,1740057035007,-500.0,0.00013698,2]
[353803211,1740057035017,-500.0,0.00013698,2]
[353803212,1740057035027,-500.0,0.00013698,2]
[353803213,1740057035037,-500.0,0.00013698,2]
[353803214,1740057035046,-500.0,0.00013698,2]
[353803215,1740057035207,-500.0,0.00013698,2]
[353803216,1740057035225,-500.0,0.00013698,2]
[353803217,1740057035234,-500.0,0.00013698,2]
[353803218,1740057035245,-942.27,0.00013698,2]
[353803219,1740057035255,-500.0,0.00013698,2]
[353803220,1740057035265,-3799.24,0.00013698,2]
[353803221,1740057035276,-500.0,0.00013698,2]
[353803222,1740057035286,-500.0,0.00013698,2]
[353803223,1740057035295,-500.0,0.00013698,2]
[353803224,1740057035305,-443.21461363,0.00013698,2]
[353803225,1740057035314,-418.66492704,0.00013698,2]
[353803226,1740057035325,-935.82,0.00013698,2]
[353803227,1740057035335,-500.0,0.00013698,2]
[353803228,1740057035345,-509.77496748,0.00013698,2]
[353803229,1740057035354,-591.32935775,0.00013698,2]
[353803230,1740057035364,-500.0,0.00013698,2]
[353803231,1740057035373,-500.0,0.00013698,2]
[353803232,1740057035382,-500.0,0.00013698,2]
[353803233,1740057035392,-500.0,0.00013698,2]
[353803234,1740057035402,-500.0,0.00013698,2]
[353803235,1740057035411,-500.0,0.00013698,2]
[353803236,1740057035421,-2492.48,0.00013698,2]
[353803237,1740057035430,-500.0,0.00013698,2]
[353803238,1740057035439,-500.0,0.00013698,2]
[353803239,1740057035449,-502.32481971,0.00013698,2]
[353803240,1740057035458,-500.0,0.00013698,2]
[353803241,1740057035468,-500.0,0.00013698,2]
[353803242,1740057035478,-2370.53,0.00013698,2]
[353803243,1740057035488,-1685.67,0.00013698,2]
[353803244,1740057035498,-500.0,0.00013698,2]
[353803245,1740057035507,-1272.56,0.00013698,2]
[353803246,1740057035517,-500.0,0.00013698,2]
[353803247,1740057035526,-500.0,0.00013698,2]
[353803248,1740057035535,-500.0,0.00013698,2]
[353803249,1740057035546,-500.0,0.00013698,2]
[353803250,1740057035556,-500.0,0.00013698,2]
[353803251,1740057035566,-500.0,0.00013698,2]
[353803252,1740057035576,-500.0,0.00013698,2]
[353803253,1740057035585,-500.0,0.00013698,2]
[353803254,1740057035595,-1609.67,0.00013698,2]
[353803255,1740057035604,-500.0,0.00013698,2]
[353803256,1740057035614,-500.0,0.00013698,2]
[353803257,1740057035624,-981.92,0.00013698,2]
[353803258,1740057035633,-502.05300707,0.00013698,2]
[353803259,1740057035642,-500.0,0.00013698,2]
[353803260,1740057035651,-500.0,0.00013698,2]
[353803261,1740057035662,-1069.43,0.00013698,2]
[353803262,1740057035671,-500.0,0.00013698,2]
[353803263,1740057035681,-502.82324713,0.00013698,2]
[353803264,1740057035690,-917.47,0.00013698,2]
[353803265,1740057035700,-500.0,0.00013698,2]
[353803266,1740057035709,-500.0,0.00013698,2]
[353803267,1740057035719,-1291.92,0.00013698,2]
[353803268,1740057035728,-1291.92,0.00013698,2]
[353803269,1740057035738,-1291.92,0.00013698,2]
[353803270,1740057035747,-1291.92,0.00013698,2]
[353803271,1740057035757,-1291.92,0.00013698,2]
[353803272,1740057035767,-500.0,0.00013698,2]
[353803273,1740057035777,-1291.92,0.00013698,2]
[353803274,1740057035787,-1291.92,0.00013698,2]
[353803275,1740057035796,-1291.92,0.00013698,2]
[353803276,1740057035805,-500.0,0.00013698,2]
[353803277,1740057035814,-1291.92,0.00013698,2]
[353803278,1740057035824,-500.0,0.00013698,2]
[353803279,1740057035833,-1291.92,0.00013698,2]
[353803280,1740057035843,-1291.92,0.00013698,2]
[353803281,1740057035852,-1291.92,0.00013698,2]
[353803282,1740057035861,-1291.92,0.00013698,2]
[353803283,1740057035871,-500.0,0.00013698,2]
[353803284,1740057035880,-500.0,0.00013698,2]
[353803285,1740057035890,-500.0,0.00013698,2]
[353803286,1740057035899,-503.89976115,0.00013698,2]
[353803287,1740057035908,-500.0,0.00013698,2]
[353803288,1740057035918,-4080.5,0.00013698,2]
[353803289,1740057035927,-11292.02,0.00013698,2]
[353803290,1740057035936,-500.0,0.00013698,2]
[353803291,1740057035946,-500.0,0.00013698,2]
[353803292,1740057035955,-814.44,0.00013698,2]
[353803293,1740057035965,-500.0,0.00013698,2]
[353803294,1740057035974,-500.0,0.00013698,2]
[353803295,1740057035983,-500.0,0.00013698,2]
[353803296,1740057035992,-500.0,0.00013698,2]
[353803297,1740057036002,-1214.55,0.00013698,2]
[353803298,1740057036011,-500.0,0.00013698,2]
[353803299,1740057036021,-500.0,0.00013698,2]
[353803300,1740057036030,-500.0,0.00013698,2]
[353803301,1740057036039,-500.0,0.00013698,2]
[353803302,1740057036048,-500.0,0.00013698,2]
[353803303,1740057036057,-500.0,0.00013698,2]
[353803304,1740057036067,-180.38668,0.00013699,2]
[353803305,1740057036076,-500.0,0.00013699,2]
[353803306,1740057036085,-1291.92,0.00013699,2]
[353803307,1740057036095,-1291.92,0.00013699,2]
[353803308,1740057036105,-4096.0,0.000137,2]
[353803309,1740057036115,-4096.0,0.000137,2]
[353803310,1740057036125,-4096.0,0.000137,2]
[353803311,1740057036134,-4096.0,0.000137,2]
[353803312,1740057036143,-4096.0,0.000137,2]
[353803313,1740057036153,-4096.0,0.000137,2]
[353803314,1740057036162,-500.0,0.00013751,2]
[353803315,1740057036172,-7438.69753278,0.00013752,2]
[353803316,1740057036182,-501.04723278,0.00013773,2]
[353803317,1740057036191,-500.77851559,0.00013773,2]
[353803318,1740057036202,-151.06126434,0.00013773,2]
[353803319,1740057036214,-500.0,0.00013773,2]
[353803320,1740057036223,-151.06275613,0.00013773,2]
[353803321,1740057036233,-550.0,0.00013773,2]
[353803322,1740057036243,-500.39970858,0.00013773,2]
[353803323,1740057036254,-160.06495811,0.00013773,2]
[353803324,1740057036264,-151.06287922,0.00013773,2]
[353803325,1740057036273,-635.95312818,0.00013773,2]
[353803326,1740057036284,-500.0,0.00013773,2]
[353803327,1740057036294,-500.0,0.00013773,2]
[353803328,1740057036304,-151.05763474,0.00013773,2]
[353803329,1740057036314,-500.21955892,0.00013773,2]
[353803330,1740057036323,-500.0,0.00013773,2]
[353803331,1740057036332,-500.0,0.00013773,2]
[353803332,1740057036342,-500.0,0.00013773,2]
[353803333,1740057036353,-500.0,0.00013773,2]
[353803334,1740057036363,-264.51517576,0.00013778,2]
[353803350,1740057038441,-235.48482424,0.00013778,2]
[353803351,1740057038451,-1291.92,0.00013778,2]
[353803352,1740057038460,-402.66,0.00013779,2]
[353803353,1740057038470,-1291.92,0.00013779,2]
[353803354,1740057038480,-1291.92,0.00013779,2]
[353803355,1740057038490,-1291.92,0.00013779,2]
[353803356,1740057038498,-1291.92,0.00013779,2]
[353803357,1740057038508,-1291.92,0.00013779,2]
[353803358,1740057038518,-1291.92,0.00013779,2]
[353803359,1740057038527,-1291.92,0.00013779,2]
[353803360,1740057038537,-1291.96,0.00013779,2]
[353803361,1740057038546,-500.0,0.0001378,2]
[353803363,1740057038555,-500.0,0.0001378,2]
[353803364,1740057038564,-500.0,0.0001378,2]
[353803366,1740057038573,-500.0,0.0001378,2]
[353803367,1740057038583,-500.0,0.0001378,2]
[353803368,1740057038592,-608.02,0.0001378,2]
[353803369,1740057038601,-500.0,0.0001378,2]
[353803370,1740057038610,-500.0,0.0001378,2]
[353803371,1740057038620,-500.0,0.0001378,2]
[353803372,1740057038629,-500.0,0.0001378,2]
[353803373,1740057038639,-500.0,0.0001378,2]
[353803374,1740057038648,-500.0,0.0001378,2]
[353803375,1740057038657,-500.0,0.0001378,2]
[353803376,1740057038667,-500.0,0.0001378,2]
[353803377,1740057038677,-621.3,0.0001378,2]
[353803378,1740057038686,-428.436,0.0001378,2]
[353803379,1740057038696,-500.0,0.0001378,2]
[353803380,1740057038705,-501.93336031,0.0001378,2]
[353803381,1740057038714,-500.0,0.0001378,2]
[353803382,1740057038724,-500.0,0.0001378,2]
[353803383,1740057038733,-501.5644629,0.0001378,2]
[353803384,1740057038742,-500.0,0.0001378,2]